Workbook

Sheet 1. ФАП (Перечень)
S1: Приложение № 3
S2: к Дополнительному соглашению № 4
S3: от "19" июля 2023 года
A5: ПЕРЕЧЕНЬ
A6: ФП, ФАП с указанием диапазона численности обслуживаемого населения, годового размера финансового обеспечения, а также информации о соответствии/несоответствии ФП, ФАП требованиям, установленным положением об организации оказания первичной медико-санитарной помощи взрослому населению
A7: Таблица 1
A8: п/п | B8: Наименование МО | C8: Объём финансирования ФП/ФАПов | R8: Всего по МО
C9: до 100 жителей | H9: от 100 до 900 жителей (соответствующие приказу МЗ) | M9: от 100 до 900 жителей ( не соответствующие приказу МЗ)
C10: кол-во ФП/ ФАПов | D10: БНФФАП | E10: КУмо | F10: КСБНФ | G10: ОСфап тыс.руб. | H10: кол-во ФП/ ФАПов | I10: БНФФАП | J10: КУмо | K10: КСБНФ | L10: ОСфап тыс.руб. | M10: кол-во ФП/ ФАПов | N10: БНФФАП | O10: КУмо | P10: КСБНФ | Q10: ОСфап тыс.руб. | R10: кол-во ФП/ ФАПов | S10: сумма тыс.руб.
A11: 1 | B11: 2 | C11: 3 | D11: 4 | E11: 5 | F11: 6 | G11: 7 | H11: 8 | I11: 9 | J11: 10 | K11: 11 | L11: 12 | M11: 13 | N11: 14 | O11: 15 | P11: 16 | Q11: 17 | R11: 18 | S11: 19
A12: 1. | B12: ГБУЗ "Магаданская областная больница", в том числе: | C12: =C13+C20+C22+C27+C30+C33+C36 -> 3 | G12: =G13+G20+G22+G27+G30+G33+G36 -> 4887.25 | H12: =H13+H20+H22+H27+H30+H33+H36 -> 14 | L12: =L13+L20+L22+L27+L30+L33+L36 -> 36330 | M12: =M13+M20+M22+M27+M30+M33+M36 -> 1 | Q12: =Q13+Q20+Q22+Q27+Q30+Q33+Q36 -> 955.83 | R12: =R13+R20+R22+R27+R30+R33+R36 -> 18 | S12: =S13+S20+S22+S27+S30+S33+S36 -> 42173.08
A13: 1.1 | B13: филиал "Ольская районная больница" | C13: =SUM(C14:C19) -> 1 | G13: 735.25 | H13: 5 | L13: 18078.5 | M13: 0 | Q13: 0 | R13: =C13+H13+M13 -> 6 | S13: =G13+L13+Q13 -> 18813.75
A14: - | B14: ФАП с.Балаганное | C14: 0 | G14: =ROUND(D14*E14*F14*C14,1) -> 0 | H14: 1 | I14: 4152 | J14: 1 | K14: 1 | L14: =ROUND(I14*J14*K14,2)*H14 -> 4152 | M14: 0 | Q14: =ROUND(1087.7*3.402*0.65,1)*M14 -> 0 | R14: 1 | S14: =G14+L14+Q14 -> 4152
A15: - | B15: ФАП с.Гадля с 01.01.23г по 11.05.23г | C15: 0 | G15: =ROUND(1087.7*3.402*0.5,1)*C15 -> 0 | H15: 1 | I15: =4152/12*4.25 -> 1470.5 | J15: 1 | K15: 1 | L15: 1470.5 | M15: 0 | Q15: 0 | R15: 1 | S15: 1470.5
A16: - | B16: ФАП с.Клёпка | C16: 0 | G16: 0 | H16: 1 | I16: 4152 | J16: 1 | K16: 1 | L16: 4152 | M16: 0 | Q16: 0 | R16: 1 | S16: 4152
A17: - | B17: ФАП с.Талон | C17: 0 | G17: 0 | H17: 1 | I17: 4152 | J17: 1 | K17: 1 | L17: 4152 | M17: 0 | Q17: 0 | R17: 1 | S17: 4152
A18: - | B18: ФАП с. Тахтоямск | C18: 0 | G18: =ROUND(1087.7*3.402*0.5,1)*C18 -> 0 | H18: 1 | I18: 4152 | J18: 1 | K18: 1 | L18: 4152 | M18: 0 | Q18: =ROUND(1087.7*3.402*0.65,1)*M18 -> 0 | R18: 1 | S18: 4152
A19: - | B19: ФП с.Ямск с 01.01.23г по 11.05.23г | C19: 1 | D19: =4152/12*4.25 -> 1470.5 | E19: 0.5 | F19: 1 | G19: =ROUND(D19*E19*F19,2)*C19 -> 735.25 | H19: 0 | L19: =ROUND(1087.7*3.402,1)*H19 -> 0 | M19: 0 | Q19: =ROUND(1087.7*3.402*0.65,1)*M19 -> 0 | R19: 1 | S19: 735.25
A20: 1.2 | B20: филиал "Среднеканская районная больница" | C20: =C21 -> 0 | G20: 0 | H20: 1 | L20: 1470.5 | M20: 0 | Q20: 0 | R20: 1 | S20: 1470.5
A21: - | B21: ФАП с.Верхний Сеймчан с 01.01.23г по 11.05.23г | G21: =ROUND(D21*E21*F21,1)*C21 -> 0 | H21: 1 | I21: =4152/12*4.25 -> 1470.5 | J21: 1 | K21: 1 | L21: =ROUND(I21*J21*K21,2)*H21 -> 1470.5 | M21: 0 | Q21: =ROUND(1087.7*3.402*0.65,1)*M21 -> 0 | R21: 1 | S21: 1470.5
A22: 1.3 | B22: филиал "Северо-Эвенская районная больница" | C22: =SUM(C23:C26) -> 1 | G22: 2076 | H22: 3 | L22: =SUM(L23:L26) -> 9774.5 | M22: 0 | Q22: 0 | R22: 4 | S22: 11850.5
A23: - | B23: ФАП с.Гарманда | C23: 0 | G23: =ROUND(1087.7*3.402*0.5,1)*C23 -> 0 | H23: 1 | I23: 4152 | J23: 1 | K23: 1 | L23: =ROUND(I23*J23*K23,2)*H23 -> 4152 | M23: 0 | Q23: =ROUND(1087.7*3.402*0.65,1)*M23 -> 0 | R23: 1 | S23: 4152
A24: - | B24: ФП с.Гижига с 01.01.23г по 11.05.23г | C24: 0 | G24: 0 | H24: 1 | I24: =4152/12*4.25 -> 1470.5 | J24: 1 | K24: 1 | L24: 1470.5 | M24: 0 | Q24: 0 | R24: 1 | S24: 1470.5
A25: - | B25: ФАП .Тополовка | C25: 1 | D25: 4152 | E25: 0.5 | F25: 1 | G25: =ROUND(D25*E25*F25,2)*C25 -> 2076 | H25: 0 | L25: =ROUND(1087.7*3.402,1)*H25 -> 0 | M25: 0 | Q25: 0 | R25: 1 | S25: 2076
A26: - | B26: ФАП с.Верний Парень | C26: 0 | G26: 0 | H26: 1 | I26: 4152 | J26: 1 | K26: 1 | L26: =ROUND(I26*J26*K26,2)*H26 -> 4152 | M26: 0 | Q26: 0 | R26: 1 | S26: 4152
A27: 1.4 | B27: филиал "Тенькинская районная больница" | C27: =SUM(C28:C29) -> 1 | G27: =SUM(G28:G29) -> 2076 | H27: =SUM(H28:H29) -> 1 | L27: =SUM(L28:L29) -> 1470.5 | M27: =SUM(M28:M29) -> 0 | Q27: =ROUND(957.2*3.102*0.65,1)*M27 -> 0 | R27: 2 | S27: 3546.5
A28: - | B28: ФАП пос.Мадаун | C28: 1 | D28: 4152 | E28: 0.5 | F28: 1 | G28: =ROUND(D28*E28*F28,2)*C28 -> 2076 | H28: 0 | L28: 0 | M28: 0 | Q28: 0 | R28: 1 | S28: 2076
A29: - | B29: ФАП пос. Омчак с 01.01.23г по 11.05.23г | C29: 0 | G29: 0 | H29: 1 | I29: =4152/12*4.25 -> 1470.5 | J29: 1 | K29: 1 | L29: =ROUND(I29*J29*K29,2)*H29 -> 1470.5 | M29: 0 | Q29: 0 | R29: 1 | S29: 1470.5
A30: 1.5 | B30: филиал "Хасынская районная больница" | C30: =SUM(C31:C32) -> 0 | G30: 0 | H30: 2 | L30: 2941 | M30: 0 | Q30: 0 | R30: 2 | S30: 2941
A31: - | B31: ФАП пос.Хасын с 01.01.23г по 11.05.23г | C31: 0 | G31: 0 | H31: 1 | I31: =4152/12*4.25 -> 1470.5 | J31: 1 | K31: 1 | L31: =ROUND(I31*J31*K31,2)*H31 -> 1470.5 | M31: 0 | Q31: 0 | R31: 1 | S31: 1470.5
A32: - | B32: ФАП пос.Талая с 01.01.23г по 11.05.23г | C32: 0 | G32: 0 | H32: 1 | I32: 1470.5 | J32: 1 | K32: 1 | L32: 1470.5 | M32: 0 | Q32: 0 | R32: 1 | S32: 1470.5
A33: 1.6 | B33: филиал "Ягоднинская районная больница" | C33: =SUM(C34:C35) -> 0 | G33: 0 | H33: 1 | L33: =SUM(L34:L35) -> 1470.5 | M33: 1 | Q33: 955.83 | R33: 2 | S33: 2426.33
A34: - | B34: ФАП пос.Бурхала с 01.01.23г по 11.05.23г | C34: 0 | G34: 0 | H34: 0 | I34: 0 | J34: 0 | K34: 0 | L34: =ROUND(I34*J34*K34,1)*H34 -> 0 | M34: 1 | N34: =4152/12*4.25 -> 1470.5 | O34: 1 | P34: 0.65 | Q34: =ROUND(N34*O34*P34,2)*M34 -> 955.83 | R34: 1 | S34: 955.83
A35: - | B35: ФАП пос.Дебин с 01.01.23г по 11.05.23г | C35: 0 | G35: 0 | H35: 1 | I35: =4152/12*4.25 -> 1470.5 | J35: 1 | K35: 1 | L35: =ROUND(I35*J35*K35,2)*H35 -> 1470.5 | M35: 0 | Q35: 0 | R35: 1 | S35: 1470.5
A36: 1.7 | B36: филиал "Сусуманская районная больница" | C36: =SUM(C37:C38) -> 0 | G36: =SUM(G37:G38) -> 0 | H36: 1 | L36: =SUM(L37:L38) -> 1124.5 | M36: 0 | Q36: =SUM(Q37:Q38) -> 0 | R36: 1 | S36: 1124.5
A37: - | B37: ФАП пгт. Холодный с 01.02.23г по 11.05.23г | C37: 0 | G37: =ROUND(1087.7*3.402*0.5,1)*C37 -> 0 | H37: 1 | I37: =4152/12*3.25 -> 1124.5 | J37: 1 | K37: 1 | L37: =ROUND(I37*J37*K37,2)*H37 -> 1124.5 | M37: 0 | Q37: =ROUND(N37*O37*P37,1)*M37 -> 0 | R37: 1 | S37: 1124.5

Sheet 2. ФАП_ПН (руб.) с 01.07
H1: ='1. ФАП (Перечень)'!S1 -> Приложение № 3
H2: ='1. ФАП (Перечень)'!S2 -> к Дополнительному соглашению № 4
H3: ='1. ФАП (Перечень)'!S3 -> от "19" июля 2023 года
H4: ='1. ФАП (Перечень)'!S4 -> 0
A6: Объем финансового обеспечения фельдшерских / фельдшерско - акушерских пунктов, оказывающих амбулаторную медицинскую помощь в рамках базовой программы ОМС 2023 года (вступает в действие с 01 июля 2023 года)
H7: Таблица 2
A8: п/п | B8: Наименование МО | C8: Численность , застрахованных лиц обслуживаемых ФАП/ФП на 01.07.23 (чел.) | D8: Всего объем ФАП/ФП, оказывающих амбулаторную медицинскую помощь на год (рублей) | E8: в том числе | G8: Фактический дифференци-рованный подушевой норматив финасирования ФП/ФАП в месяц с 01 июля 2023 года (рублей) | H8: Объем финансового обеспечения ФП/ФАП на месяц (рублей)
E9: январь-июнь 2023 года | F9: июль-декабрь 2023 года
H10: на месяц
A11: 1 | B11: 2 | C11: 3 | D11: 10 | F11: 11 | G11: 12 | H11: 13
A12: 1 | B12: ГБУЗ "Магаданская областная больница" | C12: 1685 | D12: ='1. ФАП (Перечень)'!S12 -> 42173.08 | E12: =4054*1307.9551*6/1000 -> 31814.69985 | F12: =D12-E12 -> 10358.38015 | G12: =F12*1000/C12/6 -> 1024.567769 | H12: =ROUND(G12*C12,2) -> 1726396.69
